bitfinex/quotes_ETHUSD_20250424
["timestamp","ask_amount","ask_price","bid_price","bid_amount"]
[1745503438427,7.64345165,1765.6,1765.0,7.79624115]
[1745503438945,7.64345165,1765.6,1765.0,7.281]
[1745503439748,6.42848531,1765.5,1764.8,16.995]
[1745503439955,5.66446165,1765.4,1765.1,7.281]
[1745503440248,6.42865447,1765.5,1765.1,7.281]
[1745503440608,0.76434517,1765.5,1765.1,7.281]
[1745503440856,0.29558835,1766.0,1765.2,0.799]
[1745503441051,10.5316477,1766.8,1765.6,3.0]
[1745503441204,0.29550013,1766.9,1766.1,5.66208568]
[1745503441406,0.29550013,1766.9,1766.2,12.94279304]
[1745503441606,6.47692672,1767.0,1766.2,12.94279304]
[1745503441607,0.8174,1767.0,1766.3,6.17551118]
[1745503441845,6.47672838,1767.0,1766.3,0.51395879]
[1745503442088,0.8174,1767.0,1766.3,0.51395879]
[1745503442203,5.65984082,1766.9,1766.3,0.51395879]
[1745503442548,5.65998402,1766.8,1766.2,7.281]
[1745503442749,0.8174,1767.0,1766.2,7.281]
[1745503442750,7.82183599,1767.0,1766.2,7.281]
[1745503442908,5.66570566,1766.6,1766.2,7.281]
[1745503443112,0.005,1766.6,1766.2,7.281]
[1745503443445,0.57153293,1766.6,1766.2,7.281]
[1745503443843,0.005,1766.6,1766.4,5.66111865]
[1745503444045,0.005,1766.6,1766.5,0.7646]
[1745503444249,0.005,1766.6,1766.4,5.66111865]
[1745503444250,0.005,1766.6,1766.2,7.281]
[1745503444764,0.005,1766.6,1766.2,12.94276631]
[1745503445039,0.005,1766.6,1766.2,7.281]
[1745503445245,0.005,1766.6,1766.3,5.6613934]
[1745503445451,0.005,1766.6,1766.2,7.281]
[1745503445635,0.005,1766.6,1765.8,0.767]
[1745503445861,0.005,1766.6,1766.1,7.277]
[1745503446078,5.66576908,1766.6,1766.1,7.277]
[1745503446283,0.56657691,1766.5,1765.7,24.271]
[1745503446485,0.7983,1766.1,1765.7,24.271]
[1745503446644,5.66189738,1766.2,1765.7,16.994]
[1745503446845,0.7983,1766.4,1765.7,29.93417487]
[1745503447187,5.66572847,1766.6,1766.1,0.7757]
[1745503447188,0.005,1766.6,1766.1,0.7757]
[1745503447356,0.005,1766.6,1766.2,7.277]
[1745503448182,5.66561538,1766.6,1765.8,8.65655777]
[1745503448383,0.005,1766.6,1765.9,12.93974483]
[1745503448584,0.005,1766.6,1766.4,5.66107911]
[1745503448787,0.005,1766.6,1766.5,7.84310791]
[1745503448970,0.005,1766.6,1766.5,17.05401931]
[1745503449858,0.005,1766.6,1766.5,17.56921841]
[1745503450058,0.005,1766.6,1766.5,17.33921841]
[1745503450259,1e-08,1766.6,1766.5,18.11131841]
[1745503450659,1e-08,1766.6,1766.5,14.56131841]
[1745503451061,1e-08,1766.6,1766.5,8.5642991]
[1745503451265,1e-08,1766.6,1766.5,17.7752105]
[1745503453053,1e-08,1766.6,1766.0,5.66231529]
[1745503453256,1e-08,1766.6,1766.4,7.275]
[1745503453456,5.66066303,1766.6,1766.0,7.275]
[1745503454097,0.8067,1766.5,1766.0,7.275]
[1745503454391,5.662028,1766.2,1765.6,16.981]
[1745503454592,0.8067,1765.8,1765.3,7.275]
[1745503454754,0.8067,1765.8,1765.3,0.7275]
[1745503455297,0.792,1766.2,1765.3,5.66468045]
[1745503455450,0.792,1766.2,1765.2,12.93993613]
[1745503455659,0.792,1766.2,1765.7,5.66343246]
[1745503455967,0.43246209,1766.5,1765.8,12.9380907]
[1745503456165,0.79200001,1766.6,1765.9,12.937793]
[1745503456403,6.45260822,1766.6,1766.0,7.275]
[1745503456700,5.66107229,1766.5,1766.0,7.275]
[1745503456907,0.79200001,1766.6,1766.0,7.275]
[1745503457217,5.66185786,1766.3,1766.0,7.275]
[1745503457415,5.66212438,1766.2,1766.0,7.275]
[1745503457561,5.661635,1766.3,1766.0,7.275]
[1745503457761,5.66208014,1766.2,1765.8,16.981]
[1745503458067,5.66283481,1765.9,1765.8,16.981]
[1745503458268,5.66261231,1766.0,1765.7,7.275]
[1745503458472,5.66219353,1766.1,1765.7,7.275]
[1745503458668,6.46026935,1766.2,1765.3,12.93945316]
[1745503458901,5.66219353,1766.1,1765.4,1.29394532]
[1745503459070,5.66270283,1766.0,1765.3,7.275]
[1745503459271,5.66326952,1765.8,1765.3,7.275]
[1745503459466,5.66304811,1765.9,1765.3,7.275]
[1745503459467,5.66297142,1765.9,1765.3,7.275]
[1745503459808,5.66329188,1765.8,1765.3,7.275]
[1745503460003,5.66219353,1766.1,1765.3,7.275]
[1745503460201,5.663419,1765.8,1765.3,7.275]
[1745503460402,5.66360125,1765.7,1765.3,7.275]
[1745503460704,5.66342542,1765.8,1765.2,7.276]
[1745503460919,0.7785,1765.9,1765.2,7.276]
[1745503461219,5.66265735,1766.0,1765.2,12.94085418]
[1745503461424,5.66237813,1766.1,1765.3,7.47517472]
[1745503461623,5.66166816,1766.3,1765.4,5.66443865]
[1745503461784,5.66199177,1766.2,1765.4,5.66443865]
[1745503461984,0.763,1766.4,1765.5,6.41917347]
[1745503462315,5.66175978,1766.3,1765.5,7.06109082]
[1745503462509,6.42440554,1766.4,1765.5,7.06099195]
[1745503462711,0.713,1766.4,1765.6,6.1800897]
[1745503462899,6.37435673,1766.4,1765.7,12.950465]
[1745503463089,5.66139454,1766.4,1765.7,7.287]
[1745503463285,5.66156318,1766.3,1765.7,8.06735952]
[1745503463807,5.66196852,1766.2,1765.8,0.5167508]
[1745503463993,5.66236692,1766.1,1765.8,0.5167508]
[1745503464197,5.66236692,1766.1,1765.5,0.7551]
[1745503464523,5.66263277,1766.0,1765.5,7.287]
[1745503464682,5.66263277,1766.0,1764.8,6.43425831]
[1745503464683,6.79526785,1766.0,1764.8,6.43425831]
[1745503464888,1.13249997,1766.0,1765.0,5.66572237]
[1745503465108,5.66267365,1766.0,1764.9,7.287]
[1745503465424,5.66297638,1765.9,1765.1,0.51791451]
[1745503465623,5.66303741,1765.9,1765.1,6.18320543]
[1745503465937,5.6636724,1765.7,1765.2,0.51791451]
[1745503466484,5.66370028,1765.7,1765.0,0.51791451]
[1745503466685,0.64845003,1765.7,1765.0,0.51791451]
[1745503466925,0.7887,1765.5,1764.6,7.288]
[1745503467115,0.7887,1765.5,1765.0,5.6656866]
[1745503467306,0.64845003,1765.7,1764.9,5.66575499]
[1745503467499,5.66368357,1765.7,1765.0,7.288]
[1745503467696,0.7887,1765.9,1765.1,0.51791451]
[1745503467898,5.66464495,1765.4,1765.1,0.51791451]
[1745503468134,5.66461441,1765.4,1765.0,7.288]
[1745503468297,11.32934611,1765.4,1765.0,7.288]
[1745503468495,6.79739074,1765.4,1765.0,7.288]
[1745503468826,11.33075073,1765.2,1764.6,7.288]
[1745503468993,5.66507914,1765.3,1764.6,7.288]
[1745503469189,5.6652272,1765.2,1764.6,7.288]
[1745503469588,5.66618842,1764.9,1764.4,7.289]
[1745503469895,5.66681083,1764.7,1764.4,7.289]
[1745503470229,0.7729,1764.8,1764.4,7.289]
[1745503470414,5.66732785,1764.5,1764.4,7.289]
[1745503470608,5.66752285,1764.5,1763.7,5.66958319]
[1745503470811,10.66024229,1764.5,1763.7,5.66972652]
[1745503471126,10.66024229,1764.5,1763.6,0.7582]
[1745503471127,5.6682939,1764.2,1763.6,7.289]
[1745503471292,5.66898569,1764.0,1763.6,7.289]
[1745503471639,7.81431839,1764.4,1763.6,7.289]
[1745503471805,5.66850601,1764.2,1763.6,7.289]
[1745503472329,13.48198926,1764.4,1763.6,7.289]
[1745503472513,5.66835094,1764.2,1763.6,7.289]
[1745503472687,5.66861915,1764.1,1763.6,7.289]
[1745503473343,7.01631839,1764.1,1763.6,7.289]
[1745503473493,6.49283385,1764.0,1763.0,7.291]
[1745503473693,5.66990365,1763.7,1762.9,5.67243952]
[1745503473922,5.67024112,1763.6,1763.0,7.291]
[1745503474131,5.67076283,1763.5,1763.0,7.291]
[1745503474443,7.08054283,1763.9,1763.0,7.291]
[1745503474444,5.67042464,1763.6,1763.0,7.291]
[1745503474605,5.67007634,1763.7,1763.0,7.291]
[1745503474606,1.41128339,1763.9,1763.2,5.67120075]
[1745503474799,0.7616,1764.3,1763.3,5.67118471]
[1745503474989,0.7616,1764.3,1763.8,5.66928663]
[1745503475195,0.7616,1764.3,1763.9,7.293]
[1745503475396,0.7616,1764.3,1763.8,7.293]
[1745503475934,0.7616,1764.3,1763.6,12.963082]
[1745503476139,0.7616,1764.3,1763.7,1.2963082]
[1745503476339,6.42958188,1764.3,1763.6,12.96307008]
[1745503476527,0.7616,1764.3,1763.7,12.96275484]
[1745503476728,0.7616,1764.3,1763.4,16.993]
[1745503476935,5.66914101,1764.0,1763.4,24.286]
[1745503477243,5.66914101,1764.0,1762.6,5.67336048]
[1745503477244,5.66957704,1763.8,1762.8,0.7865]
[1745503477448,0.7899,1763.4,1762.9,5.67239949]
[1745503477664,0.5669577,1763.7,1762.7,7.293]
[1745503477803,0.7899,1763.8,1762.9,5.67216963]
[1745503478131,0.7899,1763.8,1763.1,5.6715285]
[1745503478317,6.45959245,1763.8,1763.2,7.293]
[1745503478517,0.7899,1763.8,1763.2,7.293]
[1745503478700,5.67049116,1763.6,1763.2,7.293]
[1745503478901,5.67049116,1763.6,1762.5,6.46022452]
[1745503478902,0.7724,1763.5,1762.6,5.67343696]
[1745503479107,0.7724,1763.5,1762.8,7.295]
[1745503479608,5.67087203,1763.4,1762.8,7.295]
[1745503479850,6.44314238,1763.5,1762.8,12.96778392]
[1745503480055,11.66492822,1763.4,1762.8,7.295]
[1745503480208,1.81080706,1763.4,1762.8,12.96771419]
[1745503480410,6.44310756,1763.5,1762.8,7.295]
[1745503480411,0.7724,1763.5,1762.8,7.295]
[1745503480650,6.44310817,1763.5,1762.8,7.295]
[1745503480942,0.7724,1763.5,1762.9,5.67244273]
[1745503481246,0.7724,1763.5,1763.0,5.67214134]
[1745503481444,0.7724,1763.5,1762.9,5.67237764]
[1745503481649,0.7724,1763.5,1762.9,5.62237764]
[1745503481829,1.41666201,1763.5,1762.8,12.96761689]
[1745503482031,5.67099617,1763.4,1762.8,7.295]
[1745503482236,0.7724,1763.5,1762.8,7.295]
[1745503482435,5.66909754,1764.0,1762.8,7.295]
[1745503482436,0.823,1764.1,1763.5,5.67049044]
[1745503482641,6.49173191,1764.1,1763.5,7.296]
[1745503482944,5.66899495,1764.0,1763.5,7.296]
[1745503483109,6.23616695,1763.9,1763.5,7.296]
[1745503483466,0.5668995,1763.9,1763.5,7.296]
[1745503483638,0.823,1764.1,1763.5,7.296]
[1745503483639,5.66913271,1764.0,1763.5,7.296]
[1745503484159,5.66909866,1764.0,1763.5,7.296]
[1745503484655,11.33834456,1764.0,1763.5,7.296]
[1745503484826,5.6693553,1763.9,1763.4,7.297]
[1745503485644,11.33885802,1763.9,1763.4,7.297]
[1745503485838,1.1338858,1763.9,1763.4,7.297]
[1745503486043,5.66927452,1763.9,1763.4,7.297]
[1745503486242,5.66912463,1764.0,1763.4,7.297]
[1745503486443,0.823,1764.1,1763.5,5.67036425]
[1745503486645,1.04946768,1764.4,1763.6,0.8066]
[1745503486845,0.7536,1764.4,1764.0,5.66882147]
[1745503487048,0.7536,1764.4,1764.0,12.96582147]
[1745503487245,0.7536,1764.4,1764.0,7.297]
[1745503487447,6.4212752,1764.4,1764.0,7.297]
[1745503487637,0.64212752,1764.3,1763.7,5.66979066]
[1745503487839,0.7536,1764.4,1763.9,5.66895475]
[1745503488155,13.46788078,1764.7,1764.0,7.297]
[1745503488334,5.66744274,1764.5,1764.0,7.297]
[1745503488544,5.66700668,1764.6,1764.0,7.297]
[1745503488779,5.66796002,1764.4,1764.0,7.297]
[1745503488929,5.66796002,1764.4,1763.6,7.8606]
[1745503488930,6.23490562,1764.3,1763.6,7.8606]
[1745503489355,6.23490562,1764.3,1763.6,13.53074165]
[1745503489629,6.23490562,1764.3,1763.7,7.054]
[1745503490058,12.22893171,1764.3,1763.7,7.054]
[1745503490236,0.566796,1764.3,1763.7,12.72367341]
[1745503490431,0.566796,1764.3,1763.7,7.054]
[1745503490651,6.23480693,1764.3,1763.7,7.054]
[1745503490968,6.23480693,1764.3,1763.6,6.47666068]
[1745503491171,0.566796,1764.3,1763.7,12.7227981]
[1745503491533,0.7576,1764.5,1764.2,5.66825608]
[1745503491735,0.7789,1764.8,1764.2,12.72119183]
[1745503491970,0.7789,1764.8,1764.2,7.053]
[1745503492549,0.7789,1764.8,1764.2,12.72116133]
[1745503492858,2.12503025,1764.8,1764.2,7.053]
[1745503493365,12.78749231,1764.8,1764.2,7.053]
[1745503493553,5.66690405,1764.7,1764.2,7.053]
[1745503493757,4.99599941,1764.5,1764.2,7.053]
[1745503494054,4.99599941,1764.5,1763.8,0.8074]
[1745503494384,6.43220332,1764.3,1763.8,7.053]
[1745503494715,6.43222877,1764.3,1763.5,0.8074]
[1745503494838,4.99599941,1764.2,1763.2,6.48804394]
[1745503495169,11.33783692,1764.1,1763.3,5.67117406]
[1745503495378,1.13378369,1764.0,1763.3,6.19074716]
[1745503495671,6.80281991,1764.0,1763.3,6.19074716]
[1745503495847,6.80281991,1764.0,1763.4,7.053]
[1745503496173,4.99599941,1764.2,1763.6,5.66991103]
[1745503496669,4.99599941,1764.2,1763.7,0.5195731]
[1745503497060,4.99599941,1764.2,1763.4,7.053]
[1745503497061,10.66446378,1764.2,1763.8,0.5195731]
[1745503497540,10.66446378,1764.2,1763.5,5.67050493]
[1745503497737,10.66446378,1764.2,1763.4,12.72369165]
[1745503497738,5.66882171,1764.1,1763.4,12.72369165]
[1745503498043,6.73530382,1764.1,1763.5,0.52138601]
[1745503498533,6.73530382,1764.1,1763.6,7.053]
[1745503498932,0.7641,1764.3,1763.6,7.053]
[1745503498933,5.994,1764.8,1763.8,0.7846]
[1745503499185,0.8107,1765.6,1765.0,5.66549217]
[1745503499396,0.8107,1765.6,1765.1,7.053]
[1745503499539,0.8107,1765.6,1765.3,5.66458135]
[1745503499879,0.7863,1766.0,1765.1,7.053]
[1745503500374,0.7863,1766.0,1765.3,0.8321]
[1745503500576,0.7702,1766.4,1765.3,0.8321]
[1745503500733,6.43157776,1766.4,1765.6,5.66355548]
[1745503500938,5.66180274,1766.3,1765.4,6.18437182]
[1745503501134,0.7702,1765.8,1765.5,7.053]
[1745503502177,6.43338404,1765.8,1765.5,7.053]
[1745503502403,0.7702,1765.8,1765.5,7.053]
[1745503502997,0.7808,1766.1,1765.5,12.71704336]
[1745503503163,1e-08,1766.6,1765.6,17.8229]
[1745503503509,5.66077382,1766.6,1765.8,5.66301634]
[1745503503710,4.99599941,1766.5,1765.7,0.51856393]
[1745503503869,5.66191826,1766.2,1765.7,0.51856393]
[1745503504068,5.6616764,1766.3,1765.6,24.052]
[1745503504265,5.66263676,1766.0,1765.6,17.001]
[1745503504502,0.8258,1765.9,1765.6,17.001]
[1745503504702,1.39196764,1766.2,1765.6,17.001]
[1745503504901,5.66143128,1766.4,1765.7,5.66345009]
[1745503505107,5.66143128,1766.4,1765.6,22.66460695]
[1745503505472,5.66156888,1766.3,1765.6,22.66476308]
[1745503505667,5.82179941,1766.5,1765.6,17.001]
[1745503505871,5.66202417,1766.2,1765.6,17.001]
[1745503506086,0.58217994,1766.4,1765.6,17.001]
[1745503506087,5.66172946,1766.3,1765.6,17.001]
[1745503506286,4.99599941,1765.9,1765.0,0.8026]
[1745503506592,0.8301,1766.1,1764.9,7.05]
[1745503506593,5.66434456,1765.5,1764.9,7.05]
[1745503506783,5.66618579,1764.9,1764.1,0.7906]
[1745503507101,0.7672,1765.2,1764.2,5.66829157]
[1745503507281,0.7672,1765.2,1764.4,5.66764606]
[1745503507480,0.7672,1765.2,1764.3,0.51689517]
[1745503507481,5.66526515,1765.2,1764.5,7.05]
[1745503507726,5.66491077,1765.3,1764.5,7.05]
[1745503507926,5.56243387,1765.4,1764.7,5.66655277]
[1745503508223,5.56243387,1765.4,1764.8,5.66614107]
[1745503508388,5.66488415,1765.3,1764.5,5.66710925]
[1745503508589,5.66520898,1765.2,1764.6,7.05]
[1745503508791,5.66543762,1765.1,1764.6,7.05]
[1745503509121,0.8292,1765.0,1764.4,24.047]
[1745503509480,0.8292,1765.0,1764.4,29.71449335]
[1745503509686,0.8292,1765.0,1764.4,24.047]
[1745503510838,0.7921,1765.7,1764.7,0.7842]
[1745503510984,0.7921,1765.7,1765.1,5.66521049]
[1745503511188,10.65868832,1766.0,1765.2,7.05]
[1745503511189,5.78979941,1766.0,1765.2,7.05]
[1745503511383,5.66363796,1765.7,1765.2,7.05]
[1745503511581,5.66361753,1765.7,1765.2,7.05]
[1745503511886,4.99599941,1765.7,1765.2,7.05]
[1745503512108,5.66475953,1765.3,1764.7,0.7842]
[1745503512424,6.73107394,1765.3,1764.8,7.049]
[1745503512987,1.06607589,1765.3,1764.8,7.049]
[1745503513220,5.6648332,1765.3,1764.8,7.049]
[1745503513519,4.99599941,1765.4,1764.8,7.049]
[1745503513722,5.66477741,1765.3,1764.8,7.049]
[1745503514020,4.99599941,1765.4,1764.8,7.049]
[1745503514221,10.66057352,1765.4,1764.8,7.049]
[1745503514420,6.73097457,1765.3,1764.8,7.049]
[1745503514920,6.73103148,1765.3,1764.8,7.049]
[1745503515300,5.66510881,1765.2,1764.8,7.049]
[1745503515502,6.73107691,1765.3,1764.8,7.049]
[1745503515724,4.99599941,1765.4,1764.7,5.66649249]
[1745503516024,4.99599941,1765.1,1764.6,7.049]
[1745503516225,10.66151344,1765.1,1764.6,7.049]
[1745503516424,10.66146632,1765.1,1764.6,7.049]
[1745503516631,10.66142526,1765.1,1764.6,7.049]
[1745503517033,12.51274856,1765.1,1764.6,7.049]
[1745503517331,12.51266809,1765.1,1764.6,7.049]
[1745503517836,5.66572237,1765.0,1764.4,16.997]
[1745503518128,6.84714194,1765.1,1764.4,29.71353619]
[1745503518329,4.99599941,1765.1,1764.6,5.66700668]
[1745503518625,10.65962273,1765.7,1764.9,5.66585386]
[1745503518792,4.99599941,1765.7,1765.0,7.049]
[1745503518989,5.66499037,1765.3,1764.9,6.934]
[1745503520464,5.66668555,1764.7,1764.0,0.7745]
[1745503520606,5.66804608,1764.3,1763.7,6.934]
[1745503520800,10.6634333,1764.5,1763.7,6.934]
[1745503521140,5.66680496,1764.7,1763.9,5.66905307]
[1745503521293,5.66680952,1764.7,1763.9,5.66915104]
[1745503521498,17.15563469,1764.8,1764.0,5.66877199]
[1745503521797,5.66669154,1764.7,1764.0,5.66877199]
[1745503522001,5.66707646,1764.6,1763.9,6.4576347]
[1745503522218,5.6668197,1764.7,1764.0,6.31458527]
[1745503522830,5.6668197,1764.7,1764.0,0.64576347]
[1745503522831,5.66704598,1764.6,1764.0,0.64576347]
[1745503523043,5.66734963,1764.5,1764.0,0.64576347]
[1745503523248,4.99599941,1764.5,1763.9,0.7886]
[1745503523445,4.99599941,1764.5,1763.7,12.60374064]
[1745503523600,4.99599941,1764.5,1763.7,6.934]
[1745503523802,4.99599941,1764.5,1763.9,5.66901825]
[1745503523999,4.99599941,1764.5,1763.8,0.51956992]
[1745503524000,5.66813238,1764.3,1763.8,0.51956992]
[1745503524436,11.3356817,1764.4,1763.8,0.51956992]
[1745503524625,5.66778427,1764.4,1763.7,12.6037482]
[1745503524795,5.66778427,1764.4,1763.6,6.44431918]
[1745503524796,0.783,1764.4,1763.6,6.44431918]
[1745503525000,5.66806982,1764.3,1763.6,13.37938296]
[1745503525301,5.66705347,1764.6,1763.6,13.37938296]
[1745503525302,5.77899941,1764.7,1763.7,1.3379383]
[1745503525503,11.44582986,1764.7,1764.1,0.7666]
[1745503525736,11.44590603,1764.7,1764.1,0.7666]
[1745503526240,5.66721575,1764.6,1764.1,0.7666]
[1745503526444,11.44584369,1764.7,1764.1,0.7666]
[1745503526642,12.59042806,1764.7,1764.1,0.7666]
[1745503526842,6.92358378,1764.7,1763.8,0.8145]
[1745503527040,5.66716092,1764.6,1763.9,6.935]
[1745503527347,4.99599941,1765.2,1764.7,5.66642714]
[1745503527529,10.77409941,1765.8,1764.8,7.7495]
[1745503527729,2.40401195,1765.8,1764.9,7.70995]
[1745503527915,11.71422699,1766.1,1765.3,5.66449968]
[1745503528120,11.71422699,1766.1,1765.5,5.6638933]
[1745503528121,0.7603,1766.1,1765.5,5.6638933]
[1745503528444,6.42251549,1766.1,1765.4,12.59932069]
[1745503529339,6.42251549,1766.1,1765.4,6.935]
[1745503529537,7.63095716,1766.1,1765.4,12.59938047]
[1745503530137,5.66306638,1765.9,1765.4,6.935]
[1745503530339,4.99599941,1765.8,1765.4,6.935]
[1745503530501,10.65934662,1765.8,1765.4,6.935]
[1745503530708,1.06593466,1765.7,1765.4,6.935]
[1745503530906,4.99599941,1765.8,1765.4,6.935]
[1745503531116,10.65928754,1765.8,1765.4,6.935]
[1745503531950,5.75629941,1766.1,1765.4,6.935]
[1745503532159,5.75629941,1766.1,1765.6,5.66378006]
[1745503532511,5.75629941,1766.1,1765.5,5.66391668]
[1745503533147,5.75629941,1766.1,1765.5,5.66391218]
[1745503533442,6.36717935,1766.4,1765.6,0.8006]
[1745503533652,6.36717935,1766.4,1765.8,5.66292167]
[1745503533802,0.29555895,1766.5,1766.3,5.66137786]
[1745503534004,1e-08,1766.6,1766.4,12.59397917]
[1745503534207,1e-08,1766.6,1766.5,5.6609114]
[1745503534717,1e-08,1766.6,1766.2,0.8006]
[1745503535028,1e-08,1766.6,1766.1,6.933]
[1745503535214,1e-08,1766.6,1766.1,7.6263]
[1745503535616,1e-08,1766.6,1766.2,5.66184354]
[1745503535819,1e-08,1766.6,1766.1,12.5950812]
[1745503536022,1e-08,1766.6,1766.1,12.59516954]
[1745503536219,1e-08,1766.6,1766.1,6.933]
[1745503536418,1e-08,1766.6,1766.5,5.6609114]
[1745503536845,1e-08,1766.6,1766.4,6.41720293]
[1745503537240,1e-08,1766.6,1766.5,5.6609114]
[1745503537415,1e-08,1766.6,1766.4,6.41722811]
[1745503537747,1e-08,1766.6,1766.5,5.6609114]
[1745503538126,1e-08,1766.6,1766.5,6.86873468]
[1745503538332,1e-08,1766.6,1766.5,1.20782328]
[1745503538533,1e-08,1766.6,1766.4,0.7561]
[1745503539221,1e-08,1766.6,1766.5,5.6609114]
[1745503540314,1e-08,1766.6,1766.5,9.9786114]
[1745503540515,1e-08,1766.6,1766.5,9.4286114]
[1745503540731,1e-08,1766.6,1766.5,13.3586114]
[1745503541048,1e-08,1766.6,1766.5,15.26057359]
[1745503541456,1e-08,1766.6,1766.5,18.26057359]
[1745503541677,1e-08,1766.6,1766.5,18.81057359]
[1745503542015,1e-08,1766.6,1766.5,12.39448407]
[1745503542213,1e-08,1766.6,1766.5,19.32248407]
[1745503542413,0.0562166,1767.2,1766.5,19.32248407]
[1745503542619,0.0562166,1767.2,1767.1,6.4158893]
[1745503542833,0.0562166,1767.2,1767.1,13.3438893]
[1745503543362,1e-08,1767.2,1767.1,16.8938893]
[1745503543570,1e-08,1767.3,1767.2,10.02506908]
[1745503544069,0.5,1767.7,1767.2,15.68373816]
[1745503544286,1e-08,1767.7,1767.6,9.96928854]
[1745503544569,1e-08,1767.7,1767.6,16.34528854]
[1745503544969,1e-08,1767.7,1767.6,9.41928854]
[1745503545189,1e-08,1767.7,1767.6,13.34528854]
[1745503546780,1e-08,1767.7,1767.3,9.28607382]
[1745503546940,1e-08,1767.7,1767.3,6.926]
[1745503547568,1e-08,1767.7,1767.6,5.65738854]
[1745503547751,1e-08,1767.7,1767.4,0.7533]
[1745503547950,1e-08,1767.7,1767.5,6.925]
[1745503549640,5.65718673,1767.7,1767.5,6.925]
[1745503549847,6.12740979,1767.7,1767.5,6.925]
[1745503550142,1e-08,1767.7,1767.5,6.925]
[1745503550343,5.65707398,1767.7,1767.5,6.925]
[1745503550544,1e-08,1767.7,1767.5,6.925]
[1745503551599,5.65748205,1767.6,1767.1,16.973]
[1745503551774,10.65428343,1767.4,1766.8,7.5919]
[1745503552100,10.65416046,1767.4,1766.8,7.54119]
[1745503552275,10.65413041,1767.4,1766.8,7.54119]
[1745503552599,0.7979,1767.3,1766.6,6.782]
[1745503553097,0.7979,1767.3,1766.7,5.66022541]
[1745503553274,0.7979,1767.3,1766.6,6.782]
[1745503553474,5.65895121,1767.2,1766.6,6.782]
[1745503553794,0.7979,1767.3,1766.6,6.782]
[1745503553958,4.99599941,1767.2,1766.6,6.782]
[1745503554162,5.6598002,1766.9,1766.6,6.782]
[1745503554491,0.7979,1767.3,1766.6,12.44239222]
[1745503554663,6.45631748,1767.3,1766.6,12.44239222]
[1745503554858,6.45649835,1767.3,1766.6,6.782]
[1745503555204,6.45644544,1767.3,1766.6,7.4602]
[1745503555362,5.65878948,1767.2,1766.6,7.4602]
[1745503555701,0.7979,1767.3,1766.6,7.4602]
[1745503555996,5.6589374,1767.2,1766.6,6.782]
[1745503556162,5.65899468,1767.1,1766.6,6.782]
[1745503556564,5.65888473,1767.2,1766.6,6.782]
[1745503556764,5.6595021,1767.0,1766.6,6.782]
[1745503556965,6.45633837,1767.3,1766.6,6.782]
[1745503556966,1e-08,1767.7,1766.7,0.8312]
[1745503557167,10.6539794,1767.5,1766.7,0.8312]
[1745503557365,10.6539794,1767.5,1766.7,6.49145882]
[1745503557595,5.6583556,1767.3,1766.7,2.72459004]
[1745503557804,5.65842179,1767.3,1766.7,0.8312]
[1745503558407,6.13818735,1767.5,1766.8,5.65991237]
[1745503558624,11.79602545,1767.5,1766.7,6.49125785]
[1745503558797,5.65849571,1767.3,1766.7,0.8312]
[1745503559001,4.99599941,1767.2,1766.7,0.8312]
[1745503559681,1.14218794,1767.5,1766.7,1.48037815]
[1745503559880,1e-08,1767.7,1766.8,6.46087524]
[1745503560084,1e-08,1767.7,1767.5,6.45868119]
[1745503560284,1e-08,1767.7,1767.6,5.65738854]
[1745503560581,1e-08,1767.7,1767.5,0.8012]
[1745503560981,1e-08,1767.7,1767.4,6.783]
[1745503561164,1e-08,1767.7,1767.4,7.4613]
[1745503561369,1e-08,1767.7,1767.6,9.47538854]
[1745503561570,1e-08,1767.9,1767.8,8.6567485]
[1745503561812,1e-08,1767.9,1767.8,10.0247485]
[1745503561995,1e-08,1767.9,1767.8,6.4747485]
[1745503562200,1e-08,1767.9,1767.8,14.98693511]
[1745503562614,1e-08,1767.9,1767.8,8.11701595]
[1745503563340,1e-08,1767.9,1767.8,16.75886445]
[1745503563797,1e-08,1767.9,1767.8,13.75886445]
[1745503564134,1e-08,1767.9,1767.8,8.10211595]
[1745503564512,1e-08,1767.9,1767.8,0.51601595]
[1745503565446,1e-08,1767.9,1767.8,7.71056605]
[1745503566108,0.005,1768.1,1767.8,7.71056605]
[1745503566109,0.4129318,1769.0,1768.1,0.55]
[1745503566315,0.4129318,1769.0,1768.5,0.8129]
[1745503567010,0.4129318,1769.0,1768.6,0.51524671]
[1745503567454,0.4129318,1769.0,1768.6,5.65416592]
[1745503567614,0.4129318,1769.0,1768.5,6.46721928]
[1745503567814,6.06598814,1769.0,1768.2,24.5831]
[1745503568015,5.65405005,1768.7,1768.2,23.75]
[1745503568242,1.41679881,1768.9,1768.2,6.781]
[1745503568549,5.65406013,1768.7,1768.2,6.781]
[1745503568845,5.65392776,1768.7,1768.2,6.781]
[1745503569053,5.65396786,1768.7,1768.2,6.781]
[1745503569214,0.56539679,1768.6,1768.2,6.781]
[1745503569409,0.8102,1768.9,1768.2,6.781]
[1745503569616,0.4129318,1769.0,1768.5,5.65434115]
[1745503569944,0.4129318,1769.0,1768.4,11.30929316]
[1745503570264,0.4129318,1769.0,1768.7,5.65372356]
[1745503570466,0.4129318,1769.0,1768.5,5.65438913]
[1745503570666,0.4129318,1769.0,1768.4,5.65468067]
[1745503570667,0.4129318,1769.0,1768.4,5.6546691]
[1745503570968,1.01949555,1769.0,1768.3,6.47520842]
[1745503571177,1.01949555,1769.0,1768.4,5.65466328]
[1745503571363,1.01949555,1769.0,1768.3,6.47520842]
[1745503571569,6.67254869,1769.0,1768.3,0.8203]
[1745503571734,0.4129318,1769.0,1768.2,12.43632402]
[1745503571929,0.4129318,1769.0,1768.3,5.65494342]
[1745503572147,0.4129318,1769.0,1768.3,5.65499779]
[1745503572344,0.4129318,1769.0,1768.3,5.65494265]
[1745503572546,0.4129318,1769.0,1768.4,5.65459246]
[1745503572867,0.4129318,1769.0,1768.5,5.654313]
[1745503573237,6.06601067,1769.0,1768.3,6.89856746]
[1745503573448,5.65340628,1768.9,1768.2,6.781]